[Event "Reykjavik Open 2024"]
[Site "Reykjavik"]
[Date "2024.03.18"]
[Round "5.30"]
[White "Mardell, Jimmy"]
[Black "Hermannsson, Sigurbjorn"]
[Result "1-0"]
[ECO "E85"]
[WhiteElo "2172"]
[BlackElo "1791"]
[Annotator "RC"]
[PlyCount "127"]
[EventDate "2024.03.12"]
[EventCountry "ISL"]
[SourceTitle "playchess.com"]
[Source "ChessBase"]
[SourceQuality "1"]
[TimeControl "40/5400+30:1800+30"]

1. d4 {[%emt 0:00:03]} Nf6 {[%emt 0:00:14]} 2. c4 {[%emt 0:00:08]} g6 {[%emt 0:00:03]} 3. Nc3 {[%emt 0:00:10]} Bg7 {[%emt 0:00:26]} 4. e4 {[%emt 0:00:07]} d6 {[%emt 0:00:10]} 5. f3 {[%emt 0:00:20]} O-O {[%emt 0:00:29]} 6. Be3 {[%emt 0:00:08]} Nc6 {[%emt 0:01:04]} 7. Qd2 {[%emt 0:00:41]} Re8 {[%emt 0:00:27]} 8. Nge2 {[%emt 0:01:54]} e5 {[%emt 0:08:37]} 9. d5 {[%emt 0:00:22]} Nb4 {[%emt 0:00:01]} 10. g4 {[%emt 0:08:51]} c6 {[%emt 0:04:54]} 11. Ng3 {[%emt 0:02:34]} cxd5 {[%emt 0:01:48]} 12. cxd5 {[%emt 0:00:18]} Bd7 {[%emt 0:00:16]} 13. h4 {[%emt 0:10:02]} Rf8 {[%emt 0:10:34]} 14. h5 {[%emt 0:14:00]} Rc8 {[%emt 0:05:56]} 15. hxg6 {[%emt 0:04:49]} fxg6 {[%emt 0:00:15]} 16. a3 {[%emt 0:00:25]} Na6 {[%emt 0:00:24]} 17. Bxa6 {[%emt 0:10:25]} bxa6 {[%emt 0:00:02]} 18. O-O-O {[%emt 0:00:12]} Ba4 {[%emt 0:02:10]} 19. Rdf1 {[%emt 0:03:24]} Rf7 {[%emt 0:01:07]} 20. Kb1 {[%emt 0:00:53]} Bb3 {[%emt 0:00:19]} 21. g5 {[%emt 0:05:41]} Ne8 {[%emt 0:00:39]} 22. Nge2 {[%emt 0:02:06]} Rb7 {[%emt 0:01:11]} 23. Rf2 {[%emt 0:03:26]} Rcb8 {[%emt 0:00:37]} 24. Nc1 {[%emt 0:06:04]} Bc4 {[%emt 0:05:43]} 25. Nd3 {[%emt 0:07:53]} Qa5 {[%emt 0:01:19]} 26. Nb4 {[%emt 0:00:00]} Qc7 {[%emt 0:01:20]} 27. Qd1 {[%emt 0:02:05]} Qa5 {[%emt 0:04:20]} 28. Qa4 {[%emt 0:03:24]} Qxa4 {[%emt 0:03:26]} 29. Nxa4 {[%emt 0:00:04]} Bb5 {[%emt 0:00:02]} 30. Nc3 {[%emt 0:00:27]} a5 {[%emt 0:00:38]} 31. Nc6 {[%emt 0:02:05]} Bxc6 {[%emt 0:02:05]} 32. dxc6 {[%emt 0:00:04]} Rb3 {[%emt 0:00:09]} 33. Bxa7 {[%emt 0:03:30]} Ra8 {[%emt 0:00:45]} 34. Be3 {[%emt 0:00:13]} Nc7 {[%emt 0:00:43]} 35. Ka2 {[%emt 0:01:23]} Rbb8 {[%emt 0:00:15]} 36. Rd1 {[%emt 0:01:21]} Bf8 {[%emt 0:00:17]} 37. Nd5 {[%emt 0:01:52]} Nxd5 {[%emt 0:00:31]} 38. exd5 {[%emt 0:00:04]} a4 {[%emt 0:00:31]} 39. Rd3 {[%emt 0:00:26]} Rb5 {[%emt 0:00:23]} 40. Rc2 {[%emt 0:01:37]} Bg7 {[%emt 0:00:36]} 41. b4 {[%emt 0:32:35]} axb3+ {[%emt 0:30:26]} 42. Rxb3 {[%emt 0:00:06]} Rbb8 {[%emt 0:01:51]} 43. Rxb8+ {[%emt 0:01:07]} Rxb8 {[%emt 0:00:01]} 44. c7 {[%emt 0:01:27]} Rc8 {[%emt 0:00:02]} 45. Ba7 {[%emt 0:00:10]} Kf7 {[%emt 0:00:51]} 46. Bb8 {[%emt 0:00:07]} h5 {[%emt 0:00:12]} 47. gxh6 {[%emt 0:00:07]} Bxh6 {[%emt 0:00:02]} 48. a4 {[%emt 0:00:10]} Be3 {[%emt 0:00:30]} 49. a5 {[%emt 0:00:13]} Kf6 {[%emt 0:01:20]} 50. a6 {[%emt 0:00:40]} Kf5 {[%emt 0:00:06]} 51. a7 {[%emt 0:00:14]} Bxa7 {[%emt 0:00:04]} 52. Bxa7 {[%emt 0:00:05]} Kf4 {[%emt 0:00:12]} 53. Rc3 {[%emt 0:01:43]} e4 {[%emt 0:01:40]} 54. Be3+ {[%emt 0:00:00]} Kxf3 {[%emt 0:00:00]} 55. Bc5+ {[%emt 0:00:00]} Ke2 {[%emt 0:00:00]} 56. Bxd6 {[%emt 0:00:00]} Kd2 {[%emt 0:00:00]} 57. Rg3 {[%emt 0:00:00]} e3 {[%emt 0:00:00]} 58. Bf4 {[%emt 0:00:00]} Kc2 {[%emt 0:00:00]} 59. Rxe3 {[%emt 0:00:00]} g5 {[%emt 0:00:00]} 60. Bg3 {[%emt 0:00:00]} Rf8 {[%emt 0:00:00]} 61. d6 {[%emt 0:00:00]} Kd2 {[%emt 0:00:00]} 62. Rb3 {[%emt 0:00:00]} Kc2 {[%emt 0:00:00]} 63. Rb8 {[%emt 0:00:00]} Rf5 {[%emt 0:00:00]} 64. c8=Q+ {[%emt 0:00:09]} 1-0

[Event "Reykjavik Open 2024"]
[Site "Reykjavik"]
[Date "2024.03.18"]
[Round "5.31"]
[White "Ornolfsson, Magnus P."]
[Black "Winnubst, Paul"]
[Result "1-0"]
[ECO "D11"]
[WhiteElo "2163"]
[BlackElo "1681"]
[Annotator "RC"]
[PlyCount "65"]
[EventDate "2024.03.12"]
[EventCountry "ISL"]
[SourceTitle "playchess.com"]
[Source "ChessBase"]
[SourceQuality "1"]
[TimeControl "40/5400+30:1800+30"]

1. d4 {[%emt 0:00:07]} d5 {[%emt 0:00:04]} 2. Nf3 {[%emt 0:00:02]} Nf6 {[%emt 0:00:07]} 3. g3 {[%emt 0:00:06]} Bf5 {[%emt 0:00:02]} 4. Bg2 {[%emt 0:00:09]} e6 {[%emt 0:00:19]} 5. O-O {[%emt 0:00:24]} h6 {[%emt 0:00:02]} 6. c4 {[%emt 0:00:55]} c6 {[%emt 0:00:07]} 7. Nc3 {[%emt 0:02:03]} Be7 {[%emt 0:00:08]} 8. b3 {[%emt 0:02:10]} O-O {[%emt 0:00:49]} 9. Bb2 {[%emt 0:01:48]} Nbd7 {[%emt 0:03:10]} 10. Re1 {[%emt 0:01:47]} Ne4 {[%emt 0:02:27]} 11. Nd2 {[%emt 0:04:50]} Ndf6 {[%emt 0:08:22]} 12. Ndxe4 {[%emt 0:04:05]} Nxe4 {[%emt 0:00:15]} 13. Nxe4 {[%emt 0:03:29]} Bxe4 {[%emt 0:00:07]} 14. Bxe4 {[%emt 0:06:41]} dxe4 {[%emt 0:00:06]} 15. Qc2 {[%emt 0:00:34]} f5 {[%emt 0:00:11]} 16. e3 {[%emt 0:01:59]} Qa5 {[%emt 0:03:30]} 17. a3 {[%emt 0:02:21]} Rfc8 {[%emt 0:07:15]} 18. b4 {[%emt 0:05:18]} Qd8 {[%emt 0:06:09]} 19. Red1 {[%emt 0:05:05]} a5 {[%emt 0:03:12]} 20. bxa5 {[%emt 0:04:35]} Rxa5 {[%emt 0:11:21]} 21. Qb3 {[%emt 0:01:30]} Rca8 {[%emt 0:03:33]} 22. a4 {[%emt 0:04:24]} R5a6 {[%emt 0:13:24]} 23. a5 {[%emt 0:10:40]} b5 {[%emt 0:09:39]} 24. cxb5 {[%emt 0:08:50]} cxb5 {[%emt 0:01:02]} 25. d5 {[%emt 0:01:40]} Rxa5 {[%emt 0:12:08]} 26. Rxa5 {[%emt 0:02:06]} Rxa5 {[%emt 0:01:51]} 27. d6 {[%emt 0:01:03]} Bf8 {[%emt 0:02:31]} 28. Qxe6+ {[%emt 0:00:20]} Kh8 {[%emt 0:00:04]} 29. Qxh6+ {[%emt 0:00:37]} Kg8 {[%emt 0:00:28]} 30. Qe6+ {[%emt 0:00:31]} Kh8 {[%emt 0:00:06]} 31. Qxf5 {[%emt 0:01:36]} Ra2 {[%emt 0:01:31]} 32. Qh5+ {[%emt 0:00:18]} Kg8 {[%emt 0:00:05]} 33. Qd5+ {[%emt 0:00:35]} 1-0

[Event "Reykjavik Open 2024"]
[Site "Reykjavik"]
[Date "2024.03.18"]
[Round "5.32"]
[White "Mai, Alexander Oliver"]
[Black "Atharva M Parulekar"]
[Result "1-0"]
[ECO "C88"]
[WhiteElo "2160"]
[BlackElo "1580"]
[Annotator "RC"]
[PlyCount "113"]
[EventDate "2024.03.12"]
[EventCountry "ISL"]
[SourceTitle "playchess.com"]
[Source "ChessBase"]
[SourceQuality "1"]
[TimeControl "40/5400+30:1800+30"]

1. e4 {[%emt 0:00:51]} e5 {[%emt 0:03:04]} 2. Nf3 {[%emt 0:00:23]} Nc6 {[%emt 0:00:31]} 3. Bb5 {[%emt 0:01:09]} a6 {[%emt 0:00:26]} 4. Ba4 {[%emt 0:00:07]} Nf6 {[%emt 0:00:10]} 5. O-O {[%emt 0:00:09]} Be7 {[%emt 0:00:25]} 6. Re1 {[%emt 0:00:10]} b5 {[%emt 0:00:10]} 7. Bb3 {[%emt 0:00:05]} O-O {[%emt 0:01:06]} 8. a4 {[%emt 0:00:13]} Rb8 {[%emt 0:07:41]} 9. axb5 {[%emt 0:01:58]} axb5 {[%emt 0:00:09]} 10. d3 {[%emt 0:02:55]} d6 {[%emt 0:05:35]} 11. c3 {[%emt 0:01:30]} Bg4 {[%emt 0:08:51]} 12. Bg5 {[%emt 0:02:00]} Nd7 {[%emt 0:11:48]} 13. Be3 {[%emt 0:01:26]} Bf6 {[%emt 0:08:48]} 14. Nbd2 {[%emt 0:00:47]} Nc5 {[%emt 0:08:45]} 15. Bxc5 {[%emt 0:04:14]} dxc5 {[%emt 0:00:01]} 16. Qe2 {[%emt 0:03:20]} Qd7 {[%emt 0:04:09]} 17. Nf1 {[%emt 0:01:09]} Ne7 {[%emt 0:02:47]} 18. h3 {[%emt 0:01:47]} Be6 {[%emt 0:00:16]} 19. Bxe6 {[%emt 0:00:37]} Qxe6 {[%emt 0:00:29]} 20. Ra7 {[%emt 0:01:23]} Qc6 {[%emt 0:02:46]} 21. Rea1 {[%emt 0:03:38]} Ra8 {[%emt 0:01:11]} 22. Ne3 {[%emt 0:03:17]} Rxa7 {[%emt 0:02:14]} 23. Rxa7 {[%emt 0:00:02]} Ra8 {[%emt 0:01:58]} 24. Rxa8+ {[%emt 0:00:07]} Qxa8 {[%emt 0:00:02]} 25. Ng4 {[%emt 0:01:14]} Ng6 {[%emt 0:01:23]} 26. Nxf6+ {[%emt 0:00:51]} gxf6 {[%emt 0:00:01]} 27. g3 {[%emt 0:06:30]} Qa2 {[%emt 0:03:01]} 28. Qd2 {[%emt 0:06:12]} Qe6 {[%emt 0:05:13]} 29. Qh6 {[%emt 0:01:30]} c4 {[%emt 0:01:06]} 30. dxc4 {[%emt 0:00:56]} Qxc4 {[%emt 0:01:04]} 31. Qe3 {[%emt 0:02:46]} Qb3 {[%emt 0:03:17]} 32. Qe2 {[%emt 0:01:59]} b4 {[%emt 0:02:21]} 33. cxb4 {[%emt 0:00:37]} Qxb4 {[%emt 0:00:02]} 34. Nh2 {[%emt 0:01:13]} Qd6 {[%emt 0:07:24]} 35. Ng4 {[%emt 0:01:16]} Kg7 {[%emt 0:01:35]} 36. Qe3 {[%emt 0:01:55]} Qe6 {[%emt 0:01:14]} 37. Qh6+ {[%emt 0:14:12]} Kg8 {[%emt 0:00:16]} 38. Qd2 {[%emt 0:00:59]} Kg7 {[%emt 0:03:20]} 39. Qh6+ {[%emt 0:02:08]} Kg8 {[%emt 0:00:07]} 40. Qc1 {[%emt 0:00:15]} Qb6 {[%emt 0:05:05]} 41. Nh6+ {[%emt 0:30:31]} Kg7 {[%emt 0:01:51]} 42. Nf5+ {[%emt 0:00:00]} Kf8 {[%emt 0:02:18]} 43. h4 {[%emt 0:00:00]} Qb4 {[%emt 0:08:02]} 44. Qc6 {[%emt 0:00:00]} Qa5 {[%emt 0:05:57]} 45. b4 {[%emt 0:00:00]} Ne7 {[%emt 0:04:10]} 46. Nxe7 {[%emt 0:00:00]} Qa1+ {[%emt 0:01:09]} 47. Kg2 {[%emt 0:00:00]} Kxe7 {[%emt 0:00:20]} 48. Qxc7+ {[%emt 0:00:00]} Kf8 {[%emt 0:02:11]} 49. b5 {[%emt 0:00:00]} Qa8 {[%emt 0:03:10]} 50. Qc6 {[%emt 0:00:00]} Qxc6 {[%emt 0:01:14]} 51. bxc6 {[%emt 0:00:00]} Ke7 {[%emt 0:00:10]} 52. Kf3 {[%emt 0:00:00]} f5 {[%emt 0:01:22]} 53. exf5 {[%emt 0:00:00]} f6 {[%emt 0:00:24]} 54. g4 {[%emt 0:00:00]} h6 {[%emt 0:02:23]} 55. g5 {[%emt 0:00:00]} hxg5 {[%emt 0:00:37]} 56. hxg5 {[%emt 0:00:00]} Kd6 {[%emt 0:00:10]} 57. g6 {[%emt 0:00:00]} 1-0

[Event "Reykjavik Open 2024"]
[Site "Reykjavik"]
[Date "2024.03.18"]
[Round "5.35"]
[White "MacKinnon, Keith"]
[Black "Galperin, Platon"]
[Result "0-1"]
[ECO "B33"]
[WhiteElo "2142"]
[BlackElo "2555"]
[Annotator "TA"]
[PlyCount "76"]
[EventDate "2024.03.12"]
[EventCountry "ISL"]
[SourceTitle "playchess.com"]
[Source "ChessBase"]
[SourceQuality "1"]
[TimeControl "40/5400+30:1800+30"]

{[%evp 9,76,22,70,37,71,58,55,50,55,0,0,8,23,22,31,38,42,22,31,18,33,37,43,47,71,73,108,101,160,169,167,158,156,161,157,185,165,169,187,-32,-38,-75,-74,-49,-66,-64,-64,-46,-64,0,0,-92,0,0,0,0,0,0,0,-54,-55,-666,-678,-673,-645,-1000,-762,-892,-886]} 1. e4 {[%emt 0:00:05]} c5 {[%emt 0:14:29]} 2. Nf3 {[%emt 0:00:09]} Nc6 {[%emt 0:00:30]} 3. d4 {[%emt 0:00:10]} cxd4 {[%emt 0:00:04]} 4. Nxd4 {[%emt 0:00:07]} Nf6 {[%emt 0:00:03]} 5. Nc3 {[%emt 0:00:13]} h5 {[%emt 0:00:05]} (5... e5 $11 6. Ndb5 d6) 6. h3 {[%emt 0:01:02]} g6 {[%emt 0:02:00]} 7. Be2 {[%emt 0:14:54]} Bg7 {[%emt 0:00:08][%cal Of6e4]} 8. Be3 {[%emt 0:00:41] White is slightly better.} O-O {[%emt 0:00:10]} 9. O-O {[%emt 0:01:09]} (9. Nb3 $14) 9... d5 $11 {[%emt 0:01:19]} 10. exd5 {[%emt 0:01:22]} Nb4 {[%emt 0:03:45]} 11. Bf3 {[%emt 0:07:22] Hoping for Nb3.} Nbxd5 {[%emt 0:02:23]} 12. Nxd5 {[%emt 0:01:45]} Nxd5 {[%emt 0:00:04]} 13. Bg5 {[%emt 0:01:15]} Nf6 {[%emt 0:00:28]} 14. Re1 {[%emt 0:06:00]} Nh7 {[%emt 0:01:27]} 15. Be3 {[%emt 0:00:40]} a6 {[%emt 0:00:44]} 16. c3 {[%emt 0:05:14]} e5 {[%emt 0:02:52]} 17. Nb3 {[%emt 0:02:38]} Qh4 {[%emt 0:00:23]} 18. Nc5 {[%emt 0:05:53]} Rb8 {[%emt 0:30:43]} ({Better is} 18... Qe7) 19. Qd6 $16 {[%emt 0:05:52]} Bf5 {[%emt 0:00:05]} 20. Bxb7 {[%emt 0:04:14]} Ng5 {[%emt 0:00:19][%cal Of5h3]} 21. Qxa6 {[%emt 0:10:11]} Bxh3 {[%emt 0:12:14]} 22. gxh3 {[%emt 0:07:16] Strongly threatening Bxg5.} e4 {[%emt 0:02:18] [#]} 23. Nxe4 $1 {[%emt 0:03:01]} Nxe4 {[%emt 0:00:56]} 24. Qc6 {[%emt 0:08:16]} (24. Bxe4 $18 Qxe4 25. Bc5) 24... Rfe8 $15 {[%emt 0:05:41][%cal Oe8e7]} 25. Ba7 {[%emt 0:02:54][%cal Re1e4]} Re6 {[%emt 0:05:03]} 26. Qc4 {[%emt 0:04:20][%cal Re1e4]} Qg5+ {[%emt 0:05:49]} 27. Kh1 $1 {[%emt 0:00:03]} Rxb7 {[%emt 0:00:43] Black is more active.} 28. Qc8+ {[%emt 0:00:41]} (28. Rxe4 $2 {loses.} Rxa7 (28... Rxe4 $2 29. Qc8+ Kh7 30. Qxb7 $19) 29. Rxe6 fxe6 30. Qxe6+ Kh7 $19) 28... Kh7 {[%emt 0:01:32]} 29. Qxb7 {[%emt 0:00:42]} Qf5 {[%emt 0:00:23][%csl LRf2,LRh3]} 30. Kg1 {[%emt 0:02:30]} (30. Kg2 $11) 30... Qg5+ {[%emt 0:00:46]} (30... Qf3 $1 $17 {[%cal Oe6e5] White must now prevent ...Re5!} 31. c4 Re5 32. Rxe4 Rg5+ (32... Rxe4 33. Qb3 $11) 33. Kf1 Qd3+ 34. Re2 Qxh3+ 35. Ke1 Rg1+ 36. Kd2 Rxa1) 31. Kh1 $11 {[%emt 0:00:11]} Qf4 {[%emt 0:03:55]} (31... Qf5 $11 32. Kg2 Ng5) 32. Kg2 $15 {[%emt 0:00:47] Be3 would now be deadly.} Qg5+ {[%emt 0:02:24]} 33. Kh1 {[%emt 0:00:08]} Qf5 {[%emt 0:00:08][%csl LRf2,LRh3]} 34. Kg1 $1 {[%emt 0:00:15]} Re5 $40 {[%emt 0:01:03][%cal Of5h3][%mdl 128] Black has some attack.} 35. Bd4 $2 {[%emt 0:04:11][%mdl 8192] [#]} (35. Kg2 $15) 35... Qf3 $1 $19 {[%emt 0:00:24] ( -> ...Rg5+). Black is clearly winning.} 36. Rxe4 {[%emt 0:01:30]} Rxe4 {[%emt 0:00:11]} 37. Qd7 {[%emt 0:00:26]} Rh4 {[%emt 0:00:48]} 38. Bxg7 {[%emt 0:00:51]} Kxg7 {[%emt 0:01:41] Black used his chance.   Weighted Error Value: White=0.46/Black=0.12 (very precise) .  Loses game:     	White=1     	---        Missed win:     	White=1     	---        Mistake:       	White=2     	Black=3      Inaccurate:     	White=1     	Black=2      OK:         	White=12    	Black=11     Best:        	White=5     	Black=2      Strong:       	White=2     	Black=1} 0-1

[Event "Reykjavik Open 2024"]
[Site "Reykjavik"]
[Date "2024.03.18"]
[Round "5.36"]
[White "Birkisson, Bjorn Holm"]
[Black "Krzyzanowski, Marcin"]
[Result "1/2-1/2"]
[ECO "B12"]
[WhiteElo "2140"]
[BlackElo "2524"]
[Annotator "TA"]
[PlyCount "111"]
[EventDate "2024.03.12"]
[EventCountry "ISL"]
[SourceTitle "playchess.com"]
[Source "ChessBase"]
[SourceQuality "1"]
[TimeControl "40/5400+30:1800+30"]

{[%evp 9,111,16,18,8,16,17,15,-1,11,0,13,0,4,-28,-9,-14,1,-25,-17,-19,0,0,0,-6,38,20,18,25,18,0,14,23,45,43,32,0,0,0,0,0,0,0,0,0,0,0,0,0,0,0,0,-13,0,0,0,-18,-19,-19,-20,-20,-28,-35,0,0,0,0,0,-209,-209,-177,-177,-435,-518,-526,-497,-626,-236,-219,0,-721,-704,-1292,-1327,-1178,-1358,-1691,-1641,-1506,-1434,-1044,-1650,-1461,-1093,-2119,-2218,-1682,-1637,-1329,-673,-29976,0,0,0,0]} 1. e4 {[%emt 0:01:37]} c6 {[%emt 0:00:49]} 2. d4 {[%emt 0:00:14]} d5 {[%emt 0:00:04]} 3. e5 {[%emt 0:00:16]} Bf5 {[%emt 0:00:07]} 4. h4 {[%emt 0:00:54]} h5 {[%emt 0:00:04]} 5. Bd3 {[%emt 0:00:05]} Bxd3 {[%emt 0:00:11]} 6. Qxd3 {[%emt 0:00:06][%cal Oe5e6]} Qa5+ {[%emt 0:00:28]} 7. Nd2 {[%emt 0:00:39][%cal Oe5e6] And now e6! would win.} e6 {[%emt 0:00:05]} 8. Ngf3 {[%emt 0:01:21]} Nh6 {[%emt 0:00:54]} 9. O-O {[%emt 0:05:54]} Nf5 {[%emt 0:03:09]} 10. g3 {[%emt 0:00:57]} Qa6 {[%emt 0:00:52]} 11. c4 {[%emt 0:01:16]} Be7 {[%emt 0:00:09]} 12. b3 {[%emt 0:02:49][%cal Bb2b3,Bb3b4,Bb4b5][%mdl 32]} O-O {[%emt 0:01:07]} 13. a4 {[%emt 0:04:25]} Rd8 {[%emt 0:03:14]} 14. Qc3 {[%emt 0:14:35]} c5 {[%emt 0:06:15]} 15. dxc5 {[%emt 0:03:01]} dxc4 {[%emt 0:19:25]} 16. b4 {[%emt 0:09:39][%cal Ob4b5]} Nc6 {[%emt 0:17:08]} (16... Rd3 $5 17. Qc2 $8 Qc6 $11) 17. b5 {[%emt 0:13:45]} Qa5 {[%emt 0:00:06]} 18. Qxc4 {[%emt 0:00:19]} Ncd4 {[%emt 0:01:15]} 19. Bb2 {[%emt 0:02:10][%cal Rb2d4]} Nxf3+ {[%emt 0:02:13]} (19... Bxc5 $5 20. Qxc5 Rac8 21. Bxd4 Rxc5 22. Bxc5 Rxd2 23. Nxd2 Qxd2 $16) 20. Nxf3 {[%emt 0:00:07]} Rac8 {[%emt 0:01:04]} 21. Ba3 {[%emt 0:08:51]} Rd5 {[%emt 0:03:46][%cal Re7c5]} 22. Bb4 {[%emt 0:01:05]} Qd8 {[%emt 0:03:43]} 23. Rac1 {[%emt 0:00:30]} Nd4 {[%emt 0:09:37]} 24. Nxd4 {[%emt 0:02:34]} Rxd4 {[%emt 0:00:02]} 25. Qb3 {[%emt 0:00:15]} Bxh4 {[%emt 0:02:46]} 26. Rfd1 {[%emt 0:08:34]} Bg5 {[%emt 0:03:46]} 27. Rxd4 {[%emt 0:02:33]} Qxd4 {[%emt 0:00:05]} 28. Rd1 {[%emt 0:00:27]} Qg4 {[%emt 0:01:54]} (28... Qxe5 29. Qf3 h4 30. Qxb7 $16) 29. Rd7 {[%emt 0:00:17]} h4 {[%emt 0:02:03]} 30. Ba3 {[%emt 0:02:21]} (30. Rxb7 Rd8 31. Be1 (31. Rxa7 $2 Rd1+ $19) 31... Qe2 (31... Qe4 $2 32. gxh4 Qxe1+ 33. Kg2 $19) 32. gxh4 Qxe1+ 33. Kg2 Rd1 (33... Bxh4 $2 34. Qf3 $17) 34. Rb8+ Bd8 35. Rxd8+ Rxd8 $19) 30... Qe4 {[%emt 0:03:30]} 31. Qd3 {[%emt 0:02:08]} Qe1+ {[%emt 0:01:54]} 32. Qf1 {[%emt 0:00:20]} Qxe5 {[%emt 0:01:02]} 33. f4 $1 {[%emt 0:00:20]} Qe3+ {[%emt 0:02:24]} 34. Qf2 {[%emt 0:00:06]} Qxa3 {[%emt 0:06:47]} 35. fxg5 $11 {[%emt 0:01:35][%mdl 4096] Endgame. KQR-KQR} Qa1+ {[%emt 0:01:18]} (35... Rxc5 36. Qxf7+ Kh8 37. Qxg7#) (35... Qxg3+ 36. Qxg3 hxg3 37. Rxb7 (37. g6 fxg6 38. Rxb7 Rxc5 $16) 37... Rxc5 38. g6 fxg6 39. Rxa7 Rc1+ 40. Kg2 $14) 36. Qf1 {[%emt 0:02:26]} Qxf1+ {[%emt 0:01:58]} (36... Qxa4 37. Qxf7+ Kh8 38. Qxg7#) 37. Kxf1 {[%emt 0:00:05]} Rxc5 {[%emt 0:02:00] [#] Threatens to win with ...Rf5+.} (37... hxg3 $2 38. Rxb7 Rxc5 39. Rxa7 Rc1+ 40. Kg2 $18) 38. Rxb7 $2 {[%emt 0:00:05] KR-KR} (38. g6 $11 {and White is okay.} fxg6 39. Rxb7) 38... Rf5+ $19 {[%emt 0:00:28]} (38... Rxg5 $2 39. gxh4 Rf5+ 40. Ke2 $18) (38... hxg3 39. Rxa7 Rc1+ 40. Kg2 $16) 39. Kg2 {[%emt 0:00:49]} Rxg5 {[%emt 0:00:04]} 40. Rxa7 $2 {[%emt 0:00:12]} (40. a5 {was the only chance.}) 40... Rxg3+ {[%emt 0:00:12]} 41. Kh2 {[%emt 0:31:09]} Rb3 {[%emt 0:05:30] Hoping for ...g5.} 42. Rb7 {[%emt 0:00:00]} Ra3 $2 {[%emt 0:12:43]} (42... g5 {...g4 is the strong threat.} 43. a5 g4) 43. Ra7 {[%emt 0:00:00]} Rb3 $2 {[%emt 0:02:27]} (43... Ra2+ 44. Kh3 g5) 44. Rb7 $1 {[%emt 0:00:00]} g5 {[%emt 0:02:34]} 45. a5 {[%emt 0:00:00]} g4 {[%emt 0:00:15]} 46. a6 {[%emt 0:00:00]} Rb2+ {[%emt 0:00:26]} 47. Kg1 {[%emt 0:00:00]} Rb1+ {[%emt 0:00:30]} 48. Kh2 {[%emt 0:00:00]} g3+ {[%emt 0:00:36]} 49. Kh3 {[%emt 0:03:47]} Rh1+ {[%emt 0:00:21]} 50. Kg2 {[%emt 0:00:05]} Rh2+ {[%emt 0:00:18]} 51. Kg1 {[%emt 0:00:04]} Ra2 {[%emt 0:00:38]} 52. Rc7 {[%emt 0:00:30]} h3 {[%emt 0:02:20]} 53. Rc1 {[%emt 0:00:06] Repels Ra1} Kg7 {[%emt 0:06:41] ( -> ...f5)} 54. Rb1 {[%emt 0:01:00] [#]} Rg2+ $2 {[%emt 0:00:31]} (54... f5 $1 {mates} 55. b6 f4 (55... Rxa6 $2 {loses.} 56. b7 $18) 56. b7 f3 (56... Rxa6 $2 {perishes.} 57. b8=Q $18) 57. b8=Q f2+ (57... Rxa6 58. Rb7+ Kg6 59. Qxg3+ Kf6 60. Qf4+ Kg6 61. Qf7+ Kg5 62. Rb5+ Kg4 63. Qg7+ Kf4 64. Qe5+ Kg4 65. Qg5#) 58. Kh1 f1=Q+ 59. Rxf1 g2+ (59... Rxa6 60. Qxg3+ Kh8 61. Rg1 Kh7 62. Qxh3#) 60. Kg1 h2+ (60... gxf1=R+ $2 61. Kxf1 h2 62. Qe5+ Kf7 63. Qh5+ Kf6 64. a7 $18) 61. Qxh2 gxf1=Q+ (61... gxf1=B 62. Qxa2 Bxa6 63. Qxe6 Bd3 64. Qd7+ Kh6 65. Qxd3 Kg7 66. Qf5) 62. Kxf1 Rxh2 63. Kg1 Ra2 64. Kf1 Kf6 (64... Rxa6 65. Kg2 Kf6 66. Kg3 Kf5 67. Kf3 Rd6 68. Ke3 e5 69. Kf3 e4+ 70. Ke3 Rd3+ 71. Ke2 Kf4 72. Kf2 Rd6 73. Kg2 e3 74. Kg1 Kf3 75. Kh2 Rd1 76. Kh3 Rh1#) 65. a7 e5 (65... Rxa7 66. Kg2 Kf5 67. Kf3 Rd7 68. Ke3 e5 69. Kf3 Rd3+ 70. Ke2 e4 71. Ke1 e3 72. Kf1 Kf4 73. Ke2 Rd2+ 74. Kf1 Kg3 75. Ke1 Kf3 76. Kf1 Rd1#) 66. a8=B Rxa8 67. Ke2 Kf5 68. Ke3 Rd8 69. Kf3 e4+ 70. Ke3 Ke5 71. Ke2 Kf4 72. Kf2 e3+ 73. Ke2 Ke4 (73... Rd2+ 74. Kf1 Kg3 75. Ke1 Kf3 76. Kf1 Rd1#) 74. Kf1 Kf3 75. Ke1 Rd7 76. Kf1 Rd1#) 55. Kh1 $11 {[%emt 0:00:29]} Rh2+ {[%emt 0:01:19]} 56. Kg1 {[%emt 0:00:06] Weighted Error Value: White=0.23 (precise) /Black=0.23 (precise) .  Loses game:     	White=1     	---        Mistake:       	White=1     	Black=1      Inaccurate:     	White=3     	Black=2      OK:         	White=11    	Black=15     Best:        	White=4     	Black=7      Strong:       	White=2     	---} 1/2-1/2